bitfinex/quotes_BTCUSD_20240701
["timestamp","ask_amount","ask_price","bid_price","bid_amount"]
[1719853390058,1.88953506,63236.0,63235.0,0.07934304]
[1719853390675,1.93198444,63236.0,63235.0,0.07934304]
[1719853390902,1.88953506,63236.0,63235.0,0.07934304]
[1719853391889,1.90353506,63236.0,63235.0,0.07934304]
[1719853392017,1.65243206,63236.0,63235.0,0.07934304]
[1719853392419,1.63843206,63236.0,63235.0,0.07934304]
[1719853392618,1.65243206,63236.0,63235.0,0.07934304]
[1719853393325,1.63843206,63236.0,63235.0,0.07934304]
[1719853393551,0.96426006,63236.0,63235.0,0.07934304]
[1719853393749,1.16306006,63236.0,63235.0,0.07934304]
[1719853393943,1.22644006,63236.0,63235.0,0.07934304]
[1719853394177,1.22644006,63236.0,63235.0,0.08026704]
[1719853394393,1.24044006,63236.0,63235.0,0.08026704]
[1719853395086,1.05564006,63236.0,63235.0,0.08026704]
[1719853395339,1.24044006,63236.0,63235.0,0.08026704]
[1719853397180,1.0775975,63236.0,63235.0,0.08026704]
[1719853397572,1.07810635,63236.0,63235.0,0.08026704]
[1719853398006,1.0775975,63236.0,63235.0,0.08026704]
[1719853398459,0.80430635,63236.0,63235.0,0.08026704]
[1719853398938,0.8037975,63236.0,63235.0,0.08026704]
[1719853399148,0.93779814,63236.0,63235.0,0.08026704]
[1719853399358,0.94388179,63236.0,63235.0,0.08026704]
[1719853399760,0.95788179,63236.0,63235.0,0.08026704]
[1719853399965,0.95839064,63236.0,63235.0,0.08026704]
[1719853400203,0.94439064,63236.0,63235.0,0.08026704]
[1719853400719,0.93039064,63236.0,63235.0,0.08026704]
[1719853400970,0.94439064,63236.0,63235.0,0.08026704]
[1719853401449,0.95839064,63236.0,63235.0,0.08026704]
[1719853401710,0.82388115,63236.0,63235.0,0.08026704]
[1719853401928,0.82388115,63236.0,63235.0,0.63750804]
[1719853402151,0.57570115,63236.0,63235.0,0.63750804]
[1719853402375,0.56754712,63236.0,63235.0,0.37995742]
[1719853402553,0.62496029,63236.0,63235.0,0.37995742]
[1719853402771,0.62496029,63236.0,63235.0,0.63750804]
[1719853402772,0.68176589,63236.0,63235.0,0.63750804]
[1719853403011,0.63239289,63236.0,63235.0,0.63750804]
[1719853403464,0.61839289,63236.0,63235.0,0.63750804]
[1719853403689,0.59039289,63236.0,63235.0,0.63750804]
[1719853403910,0.61839289,63236.0,63235.0,0.63750804]
[1719853404131,0.56158729,63236.0,63235.0,0.63750804]
[1719853404372,0.54758729,63236.0,63235.0,0.63750804]
[1719853404592,0.54758729,63236.0,63235.0,0.66699919]
[1719853404819,0.34195527,63236.0,63235.0,1.01179919]
[1719853405068,0.32795527,63236.0,63235.0,1.01179919]
[1719853405305,0.34195527,63236.0,63235.0,1.01179919]
[1719853405542,0.35595527,63236.0,63235.0,1.01179919]
[1719853405767,0.34206108,63236.0,63235.0,1.01179919]
[1719853406000,0.32806108,63236.0,63235.0,1.01179919]
[1719853406211,0.34206108,63236.0,63235.0,1.01179919]
[1719853406629,0.32806108,63236.0,63235.0,1.01179919]
[1719853407057,0.34906108,63236.0,63235.0,1.01179919]
[1719853407423,0.38398813,63236.0,63235.0,1.01179919]
[1719853407648,0.38898813,63236.0,63235.0,1.01179919]
[1719853408072,0.38919752,63236.0,63235.0,0.98230804]
[1719853408465,0.38919752,63236.0,63235.0,0.37995742]
[1719853408466,0.5515365,63236.0,63235.0,0.37995742]
[1719853408686,0.5745365,63236.0,63235.0,0.37995742]
[1719853408912,0.5745365,63236.0,63235.0,0.63750804]
[1719853409136,0.5745365,63236.0,63235.0,0.37995742]
[1719853409407,0.5655365,63236.0,63235.0,0.37995742]
[1719853409621,0.56649633,63236.0,63235.0,0.63750804]
[1719853409839,0.57456189,63236.0,63235.0,0.63750804]
[1719853410063,0.55756189,63236.0,63235.0,0.63750804]
[1719853410529,0.56256189,63236.0,63235.0,0.63750804]
[1719853414924,0.56256189,63236.0,63235.0,0.37995742]
[1719853416306,0.56256189,63236.0,63235.0,0.08026704]
[1719853416514,0.56256189,63236.0,63235.0,0.37995742]
[1719853417975,0.56256189,63236.0,63235.0,0.08026704]
[1719853417976,1.51126474,63236.0,63235.0,0.08026704]
[1719853418190,1.81126474,63236.0,63235.0,0.000924]
[1719853418425,1.81126474,63236.0,63235.0,0.00086591]
[1719853418878,1.80226474,63236.0,63235.0,0.00086591]
[1719853419315,1.86053483,63236.0,63235.0,0.00086591]
[1719853419530,1.10640493,63236.0,63235.0,0.00086591]
[1719853419734,1.09291378,63236.0,63235.0,0.00086591]
[1719853419980,1.22477606,63236.0,63235.0,0.00086591]
[1719853420189,1.10691378,63236.0,63235.0,0.00086591]
[1719853420604,1.06264369,63236.0,63235.0,0.00086591]
[1719853420835,1.188638,63236.0,63235.0,0.00086591]
[1719853421039,1.216638,63236.0,63235.0,0.00086591]
[1719853421256,0.89133484,63236.0,63235.0,0.00086591]
[1719853421471,0.89133484,63236.0,63235.0,0.08020895]
[1719853421472,0.71243484,63236.0,63235.0,0.08020895]
[1719853421678,0.83035759,63236.0,63235.0,0.08020895]
[1719853421895,0.71243484,63236.0,63235.0,0.08020895]
[1719853422113,0.85271353,63236.0,63235.0,0.08020895]
[1719853422314,0.83871353,63236.0,63235.0,0.08020895]
[1719853422547,0.83820468,63236.0,63235.0,0.08020895]
[1719853422766,0.85220468,63236.0,63235.0,0.08020895]
[1719853422940,0.98415022,63236.0,63235.0,0.08020895]
[1719853423150,0.83013912,63236.0,63235.0,0.08020895]
[1719853423574,0.85813912,63236.0,63235.0,0.08020895]
[1719853423978,0.85864797,63236.0,63235.0,0.08020895]
[1719853425246,0.85813912,63236.0,63235.0,0.08020895]
[1719853425888,0.85864797,63236.0,63235.0,0.08020895]
[1719853427607,0.90289295,63236.0,63235.0,0.08020895]
[1719853427831,0.90289459,63236.0,63235.0,0.08020895]
[1719853428899,1.24479459,63236.0,63235.0,0.08020895]
[1719853430000,1.24479459,63236.0,63235.0,0.00086591]
[1719853430001,1.58724397,63236.0,63235.0,0.00086591]
[1719853430218,1.59433823,63236.0,63235.0,0.00086591]
[1719853430420,2.59479623,63236.0,63235.0,0.00086591]
[1719853431058,2.55054961,63236.0,63235.0,0.00086591]
[1719853431266,2.59501896,63236.0,63235.0,0.00086591]
[1719853431487,2.5950513,63236.0,63235.0,0.00086591]
[1719853433173,2.7810513,63236.0,63235.0,0.00086591]
[1719853433399,2.7670513,63236.0,63235.0,0.00086591]
[1719853433631,0.88016762,63231.0,63230.0,1.2774]
[1719853433844,3.91391579,63231.0,63230.0,1.2774]
[1719853434079,0.50071824,63229.0,63228.0,1.2774]
[1719853434313,2.38311722,63229.0,63228.0,1.2774]
[1719853434533,2.57775964,63229.0,63228.0,1.2774]
[1719853434747,2.74009335,63229.0,63228.0,1.2774]
[1719853435401,2.69495481,63229.0,63228.0,1.2774]
[1719853435621,2.74020428,63229.0,63228.0,1.2774]
[1719853436062,2.75420428,63229.0,63228.0,1.2774]
[1719853436733,2.75420428,63229.0,63228.0,1.26758881]
[1719853436948,2.76820428,63229.0,63228.0,1.26758881]
[1719853437629,0.00071824,63221.0,63213.0,0.07934304]
[1719853437861,0.83173846,63221.0,63213.0,0.07934304]
[1719853438069,1.43877163,63221.0,63213.0,0.07934304]
[1719853438282,0.35271824,63214.0,63213.0,0.07934304]
[1719853438507,2.04670741,63214.0,63213.0,0.07934304]
[1719853438725,2.16626015,63214.0,63213.0,0.07934304]
[1719853438934,2.32859386,63214.0,63213.0,0.07934304]
[1719853439370,2.3736137,63214.0,63213.0,0.07934304]
[1719853439874,2.3535667,63214.0,63213.0,0.07934304]
[1719853440288,2.1687667,63214.0,63213.0,0.07934304]
[1719853440498,1.4831977,63214.0,63213.0,0.07934304]
[1719853440741,1.43817786,63214.0,63213.0,0.07934304]
[1719853440954,1.76467086,63214.0,63213.0,0.07934304]
[1719853441191,1.28087786,63214.0,63213.0,0.07934304]
[1719853441405,1.29487786,63214.0,63213.0,0.07934304]
[1719853441990,1.01704301,63214.0,63213.0,0.07934304]
[1719853442207,0.67955186,63214.0,63213.0,0.07934304]
[1719853442834,0.67904301,63214.0,63213.0,0.07934304]
[1719853443042,0.67904301,63214.0,63213.0,0.73743342]
[1719853443261,0.67904301,63214.0,63213.0,0.99498404]
[1719853443262,0.4937093,63214.0,63213.0,0.99498404]
[1719853443469,0.61140929,63214.0,63213.0,0.99498404]
[1719853443674,0.60438855,63214.0,63213.0,1.02447519]
[1719853443880,0.48647917,63214.0,63213.0,1.02447519]
[1719853444085,0.29614019,63214.0,63213.0,1.02447519]
[1719853444427,0.29614019,63214.0,63213.0,0.99498404]
[1719853444428,0.29634958,63214.0,63213.0,0.99498404]
[1719853445080,0.31034958,63214.0,63213.0,0.99498404]
[1719853445544,0.32434958,63214.0,63213.0,0.99498404]
[1719853446004,0.32434958,63214.0,63213.0,1.02447519]
[1719853446248,0.32414019,63214.0,63213.0,1.02447519]
[1719853446465,0.32434958,63214.0,63213.0,0.99498404]
[1719853446692,0.3567636,63214.0,63213.0,0.99498404]
[1719853447130,0.36370679,63214.0,63213.0,1.02447519]
[1719853447345,0.36370679,63214.0,63213.0,0.99498404]
[1719853447602,0.54904577,63214.0,63213.0,0.29969038]
[1719853447808,0.66670627,63214.0,63213.0,0.29969038]
[1719853448040,0.61243977,63214.0,63213.0,0.29969038]
[1719853448921,0.61294862,63214.0,63213.0,0.29969038]
[1719853450012,0.61243977,63214.0,63213.0,0.29969038]
[1719853450433,0.61254888,63214.0,63213.0,0.29969038]
[1719853451295,0.61254888,63214.0,63213.0,0.37903342]
[1719853452580,0.61254888,63214.0,63213.0,0.63658404]
[1719853452581,0.58013486,63214.0,63213.0,0.63658404]
[1719853452809,0.58013486,63214.0,63213.0,0.98608404]
[1719853453031,0.58013486,63214.0,63213.0,1.01557519]
[1719853453266,0.33140188,63214.0,63213.0,1.01557519]
[1719853453481,0.3242493,63214.0,63213.0,1.01557519]
[1719853453697,0.33120307,63214.0,63213.0,1.01557519]
[1719853459911,0.33120307,63214.0,63213.0,1.01649919]
[1719853462421,0.3242493,63214.0,63213.0,1.01649919]
[1719853462901,0.33120307,63214.0,63213.0,1.01649919]
[1719853463355,0.33120307,63214.0,63213.0,1.04649919]
[1719853464247,0.33120307,63214.0,63213.0,1.20469419]
[1719853464473,0.33120307,63214.0,63213.0,1.17469419]
[1719853464729,0.33120307,63214.0,63213.0,1.20469419]
[1719853464925,0.33120307,63214.0,63213.0,1.01649919]
[1719853465315,0.30320307,63214.0,63213.0,1.01649919]
[1719853465902,0.31720307,63214.0,63213.0,1.01649919]
[1719853466120,0.36073283,63214.0,63213.0,1.01649919]
[1719853466328,0.37373283,63214.0,63213.0,1.01649919]
[1719853467275,0.33020307,63214.0,63213.0,1.01649919]
[1719853469350,0.33041246,63214.0,63213.0,1.01649919]
[1719853469559,0.33020307,63214.0,63213.0,1.01649919]
[1719853469798,0.33020307,63214.0,63213.0,0.98700804]
[1719853470001,0.33020307,63214.0,63213.0,1.01649919]
[1719853470207,0.36322338,63214.0,63213.0,1.01649919]
[1719853471231,0.48115936,63214.0,63213.0,1.01649919]
[1719853472324,0.48123745,63214.0,63213.0,1.01649919]
[1719853472528,0.36322338,63214.0,63213.0,1.01649919]
[1719853472936,0.48126652,63214.0,63213.0,1.01649919]
[1719853473348,0.36322338,63214.0,63213.0,1.01649919]
[1719853473974,0.36343277,63214.0,63213.0,1.01649919]
[1719853474186,0.36322338,63214.0,63213.0,1.01649919]
[1719853477747,0.36343277,63214.0,63213.0,1.01649919]
[1719853477988,0.36343277,63214.0,63213.0,0.98700804]
[1719853478131,0.36343277,63214.0,63213.0,1.01649919]
[1719853478736,0.36322338,63214.0,63213.0,1.01649919]
[1719853478944,0.33020307,63214.0,63213.0,1.01649919]
[1719853479359,0.34494545,63214.0,63213.0,1.01649919]
[1719853482100,0.33020307,63214.0,63213.0,1.01649919]
[1719853482317,0.34495885,63214.0,63213.0,1.01649919]
[1719853483728,0.34516824,63214.0,63213.0,1.01649919]
[1719853483940,0.39386694,63214.0,63213.0,1.01649919]
[1719853484612,0.38670378,63214.0,63213.0,1.01649919]
[1719853485516,0.38691317,63214.0,63213.0,1.01649919]
[1719853485737,0.37215739,63214.0,63213.0,1.01649919]
[1719853485928,0.38670263,63214.0,63213.0,1.01649919]
[1719853486245,0.38691202,63214.0,63213.0,1.01649919]
[1719853486467,0.38670263,63214.0,63213.0,1.01649919]
[1719853487415,0.623251,63214.0,63213.0,0.30061438]
[1719853487632,0.65318869,63214.0,63213.0,0.30061438]
[1719853487844,0.70435168,63214.0,63213.0,0.30061438]
[1719853488066,0.86391817,63214.0,63213.0,0.30061438]
[1719853488276,0.85042702,63214.0,63213.0,0.30061438]
[1719853488487,1.04576053,63214.0,63213.0,0.30061438]
[1719853488722,1.04676053,63214.0,63213.0,0.30061438]
[1719853488939,1.06076053,63214.0,63213.0,0.30061438]
[1719853489155,1.04676053,63214.0,63213.0,0.30061438]
[1719853489388,1.06076053,63214.0,63213.0,0.30061438]
[1719853489633,1.06025168,63214.0,63213.0,0.30061438]
[1719853490094,1.06025168,63214.0,63213.0,0.37995742]
[1719853491925,1.06759361,63214.0,63213.0,0.37995742]
[1719853492629,0.71269361,63214.0,63213.0,0.37995742]
[1719853493285,1.05830246,63214.0,63213.0,0.37995742]
[1719853493953,1.05779361,63214.0,63213.0,0.37995742]
[1719853494399,1.05830246,63214.0,63213.0,0.37995742]
[1719853495084,1.04344919,63214.0,63213.0,0.37995742]
[1719853495290,1.05827467,63214.0,63213.0,0.37995742]
[1719853495503,0.9929307,63214.0,63213.0,0.37995742]
[1719853495727,1.05808676,63214.0,63213.0,0.37995742]
[1719853495924,1.07797341,63214.0,63213.0,0.37995742]
[1719853497198,1.00346456,63214.0,63213.0,0.37995742]
[1719853497382,1.07746456,63214.0,63213.0,0.37995742]
[1719853497605,1.07797341,63214.0,63213.0,0.37995742]
[1719853498244,1.07793217,63214.0,63213.0,0.37995742]
[1719853498490,1.07793198,63214.0,63213.0,0.37995742]
[1719853501164,0.99799187,63214.0,63213.0,0.37995742]
[1719853501362,1.07783827,63214.0,63213.0,0.37995742]
[1719853501982,1.07783827,63214.0,63213.0,0.08026704]
[1719853502182,1.07783827,63214.0,63213.0,0.000924]
[1719853504414,1.65822424,63214.0,63213.0,0.000924]
[1719853504863,1.68583017,63214.0,63213.0,0.000924]
[1719853505072,1.65822493,63214.0,63213.0,0.00086006]
[1719853505521,1.58422493,63214.0,63213.0,0.00086006]
[1719853505765,1.65822493,63214.0,63213.0,0.00086006]
[1719853507307,1.64338079,63214.0,63213.0,0.00086006]
[1719853507518,1.65802967,63214.0,63213.0,0.00086006]
[1719853509573,0.00020939,63209.0,63206.0,0.63043252]
[1719853509785,0.14186303,63209.0,63208.0,0.25755062]
[1719853510003,0.3332207,63209.0,63208.0,0.28704177]
[1719853510227,0.3562207,63209.0,63208.0,0.25755062]
[1719853510873,0.370985,63209.0,63208.0,0.25755062]
[1719853511302,0.51265017,63209.0,63208.0,0.25755062]
[1719853511731,0.51262536,63209.0,63208.0,0.28704177]
[1719853511939,0.383985,63209.0,63208.0,0.28704177]
[1719853512403,0.38377561,63209.0,63208.0,0.28704177]
[1719853512623,0.397985,63209.0,63208.0,0.28704177]
[1719853512824,0.53965263,63209.0,63208.0,0.28704177]
[1719853513031,0.52544324,63209.0,63208.0,0.28704177]
[1719853513239,0.38377561,63209.0,63208.0,0.28704177]
[1719853513445,0.37477561,63209.0,63208.0,0.62924177]
[1719853513668,0.53711459,63209.0,63208.0,0.62924177]
[1719853514115,0.52396545,63209.0,63208.0,0.62924177]
[1719853514333,0.53706447,63209.0,63208.0,0.62924177]
[1719853514541,0.52396545,63209.0,63208.0,0.62924177]
[1719853514755,0.53706463,63209.0,63208.0,0.62924177]
[1719853514993,0.53706463,63209.0,63208.0,0.70324177]
[1719853514994,0.37472565,63209.0,63208.0,0.70324177]
[1719853515646,0.47811248,63209.0,63208.0,0.70324177]
[1719853515859,0.36001428,63209.0,63208.0,0.70324177]
[1719853516290,0.36001428,63209.0,63208.0,0.73324177]
[1719853516716,0.2469151,63209.0,63208.0,1.20786377]
[1719853517154,0.2469151,63209.0,63208.0,1.13386377]
[1719853517370,0.2469151,63209.0,63208.0,1.20786377]
[1719853517623,0.2469151,63209.0,63208.0,1.52427877]
[1719853517853,0.2469151,63209.0,63208.0,2.14069377]
[1719853518104,0.027,63209.0,63208.0,2.14069377]
[1719853518541,0.014,63209.0,63208.0,2.14069377]
[1719853518769,0.1962493,63214.0,63213.0,1.09131715]
[1719853518988,0.00010911,63214.0,63213.0,2.52744019]
[1719853519212,0.00010911,63214.0,63213.0,2.22744019]
[1719853519434,0.00010911,63214.0,63213.0,2.68977917]
[1719853519637,0.00010911,63214.0,63213.0,2.31577917]
[1719853519843,0.00010911,63214.0,63213.0,2.22744019]
[1719853520061,0.00010911,63214.0,63213.0,1.91205019]
[1719853520283,0.00110911,63214.0,63213.0,1.91205019]
[1719853520499,0.00010911,63214.0,63213.0,1.91105019]
[1719853520715,0.00010911,63214.0,63213.0,1.91205019]
[1719853522029,0.00110911,63214.0,63213.0,1.91305019]
[1719853522464,0.00110911,63214.0,63213.0,1.01807519]
[1719853522723,0.00110911,63214.0,63213.0,1.09207519]
[1719853523384,0.00010911,63214.0,63213.0,1.09007519]
[1719853523618,0.00010911,63214.0,63213.0,1.09607519]
[1719853523619,0.00110911,63214.0,63213.0,1.09607519]
[1719853523855,0.00110911,63214.0,63213.0,1.02207519]
[1719853524706,0.00110911,63214.0,63213.0,1.02299919]
[1719853524928,0.00194911,63214.0,63213.0,1.02299919]
[1719853525397,0.00094911,63214.0,63213.0,1.02199919]
[1719853525637,0.00094911,63214.0,63213.0,0.67299919]
[1719853526097,0.00094911,63214.0,63213.0,0.66799919]
[1719853526098,0.03768343,63214.0,63213.0,0.66799919]
[1719853526556,0.0011585,63214.0,63213.0,0.66799919]
[1719853527339,0.00194911,63214.0,63213.0,0.66799919]
[1719853528168,0.00094911,63214.0,63213.0,0.66799919]
[1719853529359,0.0011585,63214.0,63213.0,0.66799919]
[1719853529564,0.00194911,63214.0,63213.0,0.66799919]
[1719853530597,0.02648308,63214.0,63213.0,0.66799919]
[1719853531223,0.15768371,63214.0,63213.0,0.66799919]
[1719853531454,0.03959645,63214.0,63213.0,0.66799919]
[1719853531675,0.03959645,63214.0,63213.0,0.63850804]
[1719853532082,0.02648308,63214.0,63213.0,0.63850804]
[1719853532501,0.14457034,63214.0,63213.0,0.63850804]
[1719853533573,0.14457839,63214.0,63213.0,0.63850804]
[1719853534007,0.30689553,63214.0,63213.0,0.63850804]
[1719853534232,0.68999553,63214.0,63213.0,0.63850804]
[1719853534438,0.78999553,63214.0,63213.0,0.63850804]
[1719853535291,0.78999553,63214.0,63213.0,0.38095742]
[1719853535500,0.31182206,63214.0,63213.0,0.38095742]
[1719853535722,0.69909311,63214.0,63213.0,0.38095742]
[1719853536139,0.71219992,63214.0,63213.0,0.38095742]
[1719853536564,0.71119992,63214.0,63213.0,0.38095742]
[1719853536773,0.72023754,63214.0,63213.0,0.38195742]
[1719853536997,0.76967618,63214.0,63213.0,0.38095742]
[1719853537199,0.77767618,63214.0,63213.0,0.38095742]
[1719853537406,0.77716733,63214.0,63213.0,0.38095742]
[1719853538291,0.91881003,63214.0,63213.0,0.38095742]
[1719853538494,0.86937037,63214.0,63213.0,0.38095742]
[1719853539028,0.72772869,63214.0,63213.0,0.38095742]
[1719853539880,0.70002206,63214.0,63213.0,0.38095742]
[1719853540086,0.72770924,63214.0,63213.0,0.38095742]
[1719853542598,0.30818466,63214.0,63213.0,0.38095742]
[1719853542804,0.44987715,63214.0,63213.0,0.63850804]
[1719853543210,0.29360655,63214.0,63213.0,0.63850804]
[1719853543418,0.44990287,63214.0,63213.0,0.63850804]
[1719853543620,0.29510314,63214.0,63213.0,0.63850804]
[1719853543836,0.29507023,63214.0,63213.0,0.63850804]
[1719853544047,0.31807023,63214.0,63213.0,0.63850804]
[1719853544687,0.4597073,63214.0,63213.0,0.63850804]
[1719853544873,0.31807023,63214.0,63213.0,0.63850804]
[1719853546479,0.31806129,63214.0,63213.0,0.63850804]
[1719853546743,0.31806129,63214.0,63197.0,0.000924]
[1719853546744,0.00020939,63203.0,63197.0,0.000924]
[1719853546982,0.36200939,63198.0,63197.0,0.000924]
[1719853547239,0.63445165,63198.0,63197.0,0.000924]
[1719853547451,0.74165946,63198.0,63197.0,0.000924]
[1719853547659,0.8194151,63198.0,63197.0,0.000924]
[1719853548127,0.83397891,63198.0,63197.0,0.000924]
[1719853548347,0.83448776,63198.0,63197.0,0.000924]
[1719853548611,0.83397891,63198.0,63197.0,0.000924]
[1719853549244,0.84797891,63198.0,63197.0,0.000924]
[1719853549545,0.80631182,63198.0,63197.0,0.000924]
[1719853549765,0.84814744,63198.0,63197.0,0.000924]
[1719853550197,0.84865629,63198.0,63197.0,0.000924]
[1719853550432,1.00364553,63198.0,63197.0,0.000924]
[1719853550647,0.98964553,63198.0,63197.0,0.000924]
[1719853550885,1.00364553,63198.0,63197.0,0.000924]
[1719853551340,0.86265629,63198.0,63197.0,0.000924]
[1719853551582,1.09819894,63198.0,63197.0,0.000924]
[1719853552029,1.08419894,63198.0,63197.0,0.000924]
[1719853552235,1.07019894,63198.0,63197.0,0.000924]
[1719853552472,1.08419894,63198.0,63197.0,0.000924]
[1719853552866,1.00592067,63198.0,63197.0,0.000924]
[1719853553110,1.08466883,63198.0,63197.0,0.000924]
[1719853553321,1.084668,63198.0,63197.0,0.000924]
[1719853553532,1.09872788,63198.0,63197.0,0.000924]
[1719853553961,0.91362788,63198.0,63197.0,0.000924]
[1719853554596,1.41362788,63198.0,63197.0,0.000924]
[1719853555649,1.11362788,63198.0,63197.0,0.000924]
[1719853555871,1.04802841,63198.0,63197.0,0.000924]
[1719853556115,1.06233847,63198.0,63197.0,0.000924]
[1719853556355,0.32577801,63198.0,63197.0,0.08026704]
[1719853557216,0.31177801,63198.0,63197.0,0.08026704]
[1719853557647,0.32577801,63198.0,63197.0,0.08026704]
[1719853557860,0.32577801,63198.0,63197.0,0.33781766]
[1719853557861,0.34877801,63198.0,63197.0,0.33781766]
[1719853558087,0.36771627,63198.0,63197.0,0.33781766]
[1719853558290,0.48558933,63198.0,63197.0,0.54291766]
[1719853558527,0.43133766,63198.0,63197.0,0.54291766]
[1719853559231,0.41652382,63198.0,63197.0,0.28536704]
[1719853559482,0.41652382,63198.0,63197.0,0.54291766]
[1719853559483,0.43989035,63198.0,63197.0,0.54291766]
[1719853560351,0.45389035,63198.0,63197.0,0.54291766]
[1719853560564,0.26872368,63198.0,63197.0,0.57240881]
[1719853560801,0.16316403,63198.0,63197.0,0.73970881]
[1719853561211,0.1484158,63198.0,63197.0,0.73970881]
[1719853561422,0.1213136,63198.0,63197.0,0.73970881]
[1719853561628,0.1213136,63198.0,63197.0,0.76970881]
[1719853561842,0.11410579,63198.0,63197.0,0.73970881]
[1719853562508,0.16907387,63198.0,63197.0,0.73970881]
[1719853562718,0.15507387,63198.0,63197.0,0.73970881]
[1719853562925,0.11210579,63198.0,63197.0,0.73970881]
[1719853563184,0.12410579,63198.0,63197.0,0.73970881]
[1719853563399,0.12410579,63198.0,63197.0,0.76970881]
[1719853563604,0.02410579,63198.0,63197.0,0.73970881]
[1719853563813,0.02410579,63198.0,63197.0,0.76970881]
[1719853564051,0.02410579,63198.0,63197.0,0.73970881]
[1719853565555,0.02410579,63198.0,63197.0,0.76970881]
[1719853565782,0.02410579,63198.0,63197.0,0.92794381]
[1719853566223,0.02410579,63198.0,63197.0,1.24441381]
[1719853566709,0.02410579,63198.0,63197.0,0.92794381]
[1719853566940,0.02410579,63198.0,63197.0,0.73970881]
[1719853567152,0.02410579,63198.0,63197.0,0.92794381]
[1719853567365,0.02410579,63198.0,63197.0,0.89794381]
[1719853567567,0.02410579,63198.0,63197.0,0.92794381]
[1719853568035,0.02410579,63198.0,63197.0,0.89794381]
[1719853568335,0.02410579,63198.0,63197.0,0.73970881]
[1719853568582,0.0781219,63198.0,63197.0,0.45266704]
[1719853568796,0.09143716,63198.0,63197.0,0.08026704]
[1719853569005,0.09143716,63198.0,63197.0,0.36730881]
[1719853569208,0.09143716,63198.0,63197.0,0.08026704]
[1719853569437,0.2916546,63198.0,63197.0,0.000924]
[1719853569615,0.3916546,63198.0,63197.0,0.000924]
[1719853569885,0.3916546,63198.0,63197.0,0.00085382]
[1719853570540,0.45548136,63198.0,63197.0,0.00085382]
[1719853570761,0.33763849,63198.0,63197.0,0.00085382]
[1719853570969,0.33763849,63198.0,63197.0,0.25840444]
[1719853571385,0.45551581,63198.0,63197.0,0.00085382]
[1719853572052,0.3376593,63198.0,63197.0,0.00085382]
[1719853572260,0.46425038,63198.0,63197.0,0.00085382]
[1719853572874,0.58211801,63198.0,63197.0,0.00085382]
[1719853573310,0.46425038,63198.0,63197.0,0.00085382]
[1719853573923,0.582129,63198.0,63197.0,0.25840444]
[1719853574141,1.00255923,63198.0,63197.0,0.00085382]
[1719853574354,1.34729523,63198.0,63197.0,0.00085382]
[1719853574581,1.00205596,63198.0,63197.0,0.00085382]
[1719853574774,1.1958737,63198.0,63197.0,0.00085382]
[1719853575330,1.1838737,63198.0,63197.0,0.00085382]
[1719853575772,1.1978737,63198.0,63197.0,0.00085382]
[1719853576039,1.1858737,63198.0,63197.0,0.00085382]
[1719853576394,1.00026485,63198.0,63197.0,0.00085382]
[1719853576767,0.5061514,63198.0,63197.0,0.3005442]
[1719853576977,0.5061514,63198.0,63197.0,0.58758597]
[1719853576978,0.5201514,63198.0,63197.0,0.58758597]
[1719853577103,0.39356032,63198.0,63197.0,0.55809482]
[1719853577306,0.39356032,63198.0,63197.0,0.3005442]
[1719853577697,0.31365416,63198.0,63197.0,0.3005442]
[1719853577899,0.3416796,63198.0,63197.0,0.3005442]
[1719853578118,0.43145031,63198.0,63197.0,0.3005442]
[1719853578400,0.43145003,63198.0,63197.0,0.3005442]
[1719853579267,0.43195888,63198.0,63197.0,0.3005442]
[1719853580112,0.62545992,63198.0,63197.0,0.3005442]
[1719853580323,0.48395445,63198.0,63197.0,0.3005442]
[1719853580968,0.40393372,63198.0,63197.0,0.3005442]
[1719853581198,0.83718746,63198.0,63197.0,0.3005442]
[1719853581429,0.83718746,63198.0,63196.0,0.08755314]
[1719853581430,0.30071824,63197.0,63196.0,0.08755314]
[1719853581653,1.43487379,63197.0,63196.0,0.08330921]
[1719853581899,1.21948695,63197.0,63196.0,0.08330921]
[1719853582599,1.28622667,63197.0,63196.0,0.08330921]
[1719853583038,0.68702667,63197.0,63196.0,0.08330921]
[1719853583545,0.71502667,63197.0,63196.0,0.08330921]
[1719853584229,0.63517293,63197.0,63196.0,0.08330921]
[1719853584494,0.70142948,63197.0,63196.0,0.08330921]
[1719853584727,0.68742948,63197.0,63196.0,0.08330921]
[1719853585181,0.70142948,63197.0,63196.0,0.08330921]
[1719853585413,0.71542948,63197.0,63196.0,0.08330921]
[1719853585823,0.55613863,63197.0,63196.0,0.08330921]
[1719853586408,0.55664748,63197.0,63196.0,0.08330921]
[1719853586770,0.55613863,63197.0,63196.0,0.64055021]
[1719853587024,0.55613863,63197.0,63196.0,0.38299959]
[1719853587572,0.3938327,63197.0,63196.0,0.64055021]
[1719853587773,0.3938327,63197.0,63196.0,0.38299959]
[1719853588263,0.3938327,63197.0,63196.0,0.58229959]
[1719853588405,0.3938327,63197.0,63196.0,0.83985021]
[1719853588608,0.43087137,63197.0,63196.0,0.83985021]
[1719853589237,0.3938327,63197.0,63196.0,0.83985021]
[1719853590867,0.38148144,63197.0,63196.0,0.83985021]
[1719853591134,0.39459677,63197.0,63196.0,0.83985021]
[1719853591392,0.39459912,63197.0,63196.0,0.38299959]
[1719853591612,0.67611415,63197.0,63196.0,0.38299959]
[1719853592271,0.676623,63197.0,63196.0,0.38299959]
[1719853592481,0.51708068,63197.0,63196.0,0.38299959]
[1719853593120,0.51657183,63197.0,63196.0,0.38299959]
[1719853593877,0.51654487,63197.0,63196.0,0.64055021]
[1719853594101,0.67617471,63197.0,63196.0,0.38299959]
[1719853595032,0.67668356,63197.0,63196.0,0.38299959]
[1719853597311,0.67647353,63197.0,63196.0,0.08330921]
[1719853597554,0.51682841,63197.0,63196.0,0.08330921]
[1719853600032,0.51682841,63197.0,63196.0,0.0807698]
[1719853600479,0.51738559,63197.0,63196.0,0.0807698]
[1719853603755,0.51715345,63197.0,63196.0,0.0807698]
[1719853603986,0.43602993,63197.0,63196.0,0.0807698]
[1719853604234,0.51715408,63197.0,63196.0,0.0807698]
[1719853605598,0.70475408,63197.0,63196.0,0.0807698]
[1719853606528,0.70475408,63197.0,63196.0,0.07601193]
[1719853606968,0.68978697,63197.0,63196.0,0.07601193]
[1719853610307,0.68977254,63197.0,63196.0,0.07601193]
[1719853611544,0.81414354,63197.0,63196.0,0.07601193]
[1719853612694,0.81414354,63197.0,63192.0,0.009251]
[1719853612695,0.00071824,63193.0,63192.0,0.009251]
[1719853612911,0.51145722,63193.0,63192.0,0.009251]
[1719853613121,0.52457447,63193.0,63192.0,0.009251]
[1719853613338,0.70059983,63193.0,63192.0,0.009251]
[1719853613570,0.70052575,63193.0,63192.0,0.009251]
[1719853613790,0.83181955,63193.0,63192.0,0.009251]
[1719853614030,0.83174558,63193.0,63192.0,0.009251]
[1719853614231,0.84530672,63193.0,63192.0,0.009251]
[1719853614450,0.49690672,63193.0,63192.0,0.009251]
[1719853614574,0.36561292,63193.0,63192.0,0.009251]
[1719853614776,0.37961292,63193.0,63192.0,0.009251]
[1719853615301,0.44303292,63193.0,63192.0,0.009251]